bitfinex/quotes_SOLUSD_20240711
["timestamp","ask_amount","ask_price","bid_price","bid_amount"]
[1720712254837,12.58810768,140.35,140.29,7.1278]
[1720712255022,45.0,140.34,140.29,7.1278]
[1720712255616,45.0,140.34,140.3,7.1275]
[1720712257114,5.46290768,140.35,140.3,7.1275]
[1720712258025,45.0,140.34,140.29,7.1279]
[1720712258215,45.0,140.34,140.3,7.1275]
[1720712258541,45.0,140.34,140.28,17.8203]
[1720712259037,52.1257,140.34,140.28,24.9488]
[1720712259415,52.1257,140.34,140.28,17.8203]
[1720712259814,52.1257,140.34,140.3,7.1274]
[1720712259815,45.0,140.34,140.3,7.1274]
[1720712260719,58.68,140.34,140.3,7.1274]
[1720712261458,58.68,140.34,140.29,7.1279]
[1720712261847,58.68,140.34,140.3,7.1274]
[1720712262724,58.68,140.34,140.29,20.8079]
[1720712262945,58.68,140.34,140.29,7.1279]
[1720712263245,58.68,140.34,140.3,7.1274]
[1720712263632,45.0,140.34,140.3,7.1274]
[1720712263835,19.14290768,140.35,140.3,13.68]
[1720712264044,13.68,140.34,140.25,53.4739]
[1720712264258,5.46290768,140.35,140.26,7.1292]
[1720712264259,13.68,140.3,140.26,7.1292]
[1720712264423,13.68,140.3,140.27,7.129]
[1720712264743,13.68,140.3,140.25,31.5046]
[1720712264744,13.68,140.3,140.25,24.9542]
[1720712265244,45.0,140.29,140.25,24.9542]
[1720712265618,7.1267,140.32,140.26,7.1294]
[1720712265816,13.68,140.3,140.26,7.1294]
[1720712266049,13.68,140.31,140.26,7.1294]
[1720712266227,45.0,140.3,140.26,7.1294]
[1720712266427,58.68,140.3,140.26,7.1294]
[1720712267926,45.0,140.3,140.26,7.1294]
[1720712268127,13.68,140.3,140.26,7.1294]
[1720712268961,58.68,140.31,140.26,20.8094]
[1720712269855,13.68,140.3,140.26,7.1294]
[1720712270058,13.68,140.27,140.22,17.8283]
[1720712270243,13.68,140.27,140.22,7.1315]
[1720712272672,13.68,140.26,140.21,24.9622]
[1720712272836,45.0,140.29,140.21,17.8302]
[1720712272837,13.68,140.25,140.21,17.8302]
[1720712273639,45.0,140.24,140.19,13.68]
[1720712273967,45.0,140.24,140.16,21.621]
[1720712273968,13.68,140.22,140.16,13.68]
[1720712274264,67.407,140.24,140.16,7.1345]
[1720712274265,13.68,140.21,140.16,7.1345]
[1720712274440,13.68,140.21,140.16,20.8145]
[1720712274757,67.407,140.24,140.16,20.8145]
[1720712274758,13.68,140.2,140.16,7.1345]
[1720712275261,13.68,140.2,140.15,38.6525]
[1720712275564,13.68,140.19,140.16,7.1346]
[1720712275861,13.68,140.21,140.17,7.134]
[1720712276047,13.68,140.21,140.18,7.1335]
[1720712276244,13.68,140.21,140.17,24.9687]
[1720712276762,74.5376,140.24,140.17,24.9687]
[1720712277560,67.407,140.24,140.18,7.1336]
[1720712277762,67.407,140.24,140.19,7.133]
[1720712278539,67.407,140.24,140.18,7.1335]
[1720712278964,67.407,140.24,140.19,7.1331]
[1720712279146,67.407,140.24,140.2,7.1325]
[1720712279349,16.0079,140.24,140.21,7.132]
[1720712279544,31.62909389,140.27,140.2,7.1325]
[1720712279747,31.62909389,140.27,140.19,17.8325]
[1720712279748,24.49999389,140.27,140.19,17.8325]
[1720712280148,32.0363199,140.27,140.16,17.8359]
[1720712280657,7.1302,140.25,140.18,7.1332]
[1720712280871,52.1306,140.24,140.17,7.134]
[1720712281040,45.0,140.23,140.17,7.134]
[1720712281442,45.0,140.23,140.18,7.1336]
[1720712281738,45.0,140.24,140.19,7.1328]
[1720712281950,45.0,140.25,140.18,17.8337]
[1720712282157,45.0,140.26,140.18,17.8337]
[1720712282361,7.1313,140.23,140.15,17.8379]
[1720712282666,45.0,140.22,140.15,17.8379]
[1720712283074,7.1309,140.24,140.17,7.1337]
[1720712283547,52.1312,140.23,140.16,7.1346]
[1720712284063,45.0,140.23,140.17,7.134]
[1720712284466,45.0,140.23,140.18,7.1336]
[1720712284642,32.0363199,140.27,140.19,17.8325]
[1720712285150,7.1308,140.24,140.17,7.1341]
[1720712285343,7.1311,140.23,140.17,7.1341]
[1720712285653,7.1307,140.24,140.17,7.1341]
[1720712285967,24.49999389,140.27,140.2,7.1323]
[1720712286277,45.0,140.26,140.2,7.1323]
[1720712286566,24.49999389,140.27,140.22,7.1316]
[1720712286741,18.32519389,140.27,140.21,7.132]
[1720712286938,18.32519389,140.27,140.22,1.42600519]
[1720712287175,25.45429389,140.27,140.2,24.9632]
[1720712287462,22.7586,140.3,140.22,17.8284]
[1720712288368,7.1291,140.27,140.2,7.1326]
[1720712288539,43.48686135,140.3,140.19,45.2519]
[1720712288863,33.20398736,140.3,140.21,17.8297]
[1720712289065,33.20398736,140.3,140.2,35.6615]
[1720712289374,25.66766135,140.3,140.24,7.1304]
[1720712289668,25.66766135,140.3,140.2,17.8306]
[1720712289669,33.20398736,140.3,140.2,17.8306]
[1720712289848,7.1292,140.27,140.2,24.9629]
[1720712290367,7.1281,140.29,140.22,7.1315]
[1720712290571,45.0,140.28,140.23,7.1309]
[1720712290775,45.0,140.29,140.23,7.1309]
[1720712290950,32.79556135,140.3,140.23,7.1309]
[1720712291286,32.79516135,140.3,140.23,7.1309]
[1720712291466,7.1281,140.29,140.22,24.96]
[1720712291868,25.66766135,140.3,140.22,17.8285]
[1720712292254,25.66766135,140.3,140.24,7.1302]
[1720712293477,25.66766135,140.3,140.22,17.8285]
[1720712293654,45.0,140.29,140.22,17.8285]
[1720712294472,17.8157,140.33,140.22,17.8285]
[1720712294682,7.1279,140.3,140.23,7.1309]
[1720712294874,52.1282,140.29,140.22,24.9599]
[1720712295077,45.0,140.28,140.23,7.1311]
[1720712295778,7.1275,140.3,140.23,7.1311]
[1720712295779,45.0,140.29,140.23,7.1311]
[1720712295996,2.86423087,140.33,140.25,7.1296]
[1720712296182,7.53632601,140.34,140.25,7.1296]
[1720712296478,7.1269,140.32,140.25,7.1296]
[1720712297587,7.127,140.31,140.25,7.1296]
[1720712297961,45.0,140.3,140.25,7.1296]
[1720712298557,45.0,140.3,140.24,24.9567]
[1720712299091,7.127,140.31,140.25,1.42559591]
[1720712299611,7.127,140.31,140.25,8.55559591]
[1720712299899,7.1267,140.32,140.25,8.55559591]
[1720712300096,17.61228903,140.34,140.27,7.1289]
[1720712300308,17.61228903,140.34,140.28,1.42526713]
[1720712300478,7.1261,140.33,140.28,1.42526713]
[1720712300798,7.1261,140.33,140.29,0.81584679]
[1720712300999,7.1261,140.33,140.28,0.99988019]
[1720712301305,7.1261,140.33,140.29,1.22041479]
[1720712301594,2.56,140.35,140.29,1.22041479]
[1720712301795,9.6853,140.35,140.28,7.1283]
[1720712302108,7.1257,140.34,140.29,1.42497051]
[1720712302606,2.56,140.35,140.27,16.6112]
[1720712302788,5.41317756,140.35,140.27,16.6112]
[1720712302992,7.1261,140.33,140.27,16.6112]
[1720712303496,7.1265,140.32,140.27,16.6112]
[1720712303707,7.1272,140.31,140.27,16.6112]
[1720712304000,7.1261,140.33,140.27,16.6112]
[1720712304404,45.0,140.34,140.27,16.6112]
[1720712304587,47.56,140.35,140.27,16.6112]
[1720712304903,7.1268,140.32,140.27,16.6112]
[1720712305114,52.1271,140.31,140.27,16.6112]
[1720712305315,52.1271,140.31,140.22,487.3]
[1720712305316,7.1281,140.29,140.24,16.3749]
[1720712305483,52.1272,140.31,140.24,23.5053]
[1720712305806,45.0,140.31,140.27,7.1286]
[1720712305982,7.1259,140.34,140.24,17.80048287]
[1720712305983,9.685,140.35,140.28,8.55377328]
[1720712306179,7.1266,140.32,140.26,17.8237]
[1720712306400,45.0,140.34,140.24,23.5054]
[1720712306705,7.1272,140.31,140.24,23.5054]
[1720712306894,7.1266,140.32,140.25,7.13]
[1720712307101,52.127,140.31,140.25,7.13]
[1720712307478,45.0,140.31,140.25,7.13]
[1720712308409,45.0,140.31,140.26,7.1295]
[1720712308590,45.0,140.32,140.26,7.1295]
[1720712308792,45.0,140.32,140.25,17.8251]
[1720712308793,9.6855,140.35,140.28,7.1285]
[1720712308987,7.1256,140.34,140.28,7.1285]
[1720712309203,7.1256,140.34,140.27,24.9513]
[1720712309600,7.1263,140.33,140.27,17.8224]
[1720712309809,7.1266,140.32,140.26,7.1295]
[1720712310110,45.0,140.31,140.26,7.1295]
[1720712310282,45.0,140.31,140.25,0.71638937]
[1720712310283,45.0,140.31,140.24,34.2006]
[1720712310489,52.1272,140.31,140.24,41.3308]
[1720712311095,7.1276,140.3,140.24,41.3308]
[1720712311298,45.0,140.29,140.24,34.2006]
[1720712311496,7.1287,140.28,140.21,24.961]
[1720712311712,45.0,140.27,140.21,24.961]
[1720712312106,45.0,140.27,140.22,7.1316]
[1720712312303,45.0,140.28,140.23,7.1309]
[1720712312611,45.0,140.29,140.23,7.1309]
[1720712312905,45.0,140.29,140.24,7.1304]
[1720712313113,45.0,140.3,140.24,7.1304]
[1720712313415,45.0,140.3,140.25,7.1299]
[1720712313598,45.0,140.31,140.25,7.1299]
[1720712313911,52.1271,140.31,140.24,7.1305]
[1720712314109,7.1276,140.3,140.23,24.9581]
[1720712314310,45.0,140.29,140.23,24.9581]
[1720712314524,52.1284,140.29,140.2,60.8732]
[1720712314810,45.0,140.29,140.2,60.8732]
[1720712315035,52.1281,140.29,140.22,7.1313]
[1720712315911,45.0,140.29,140.23,7.1309]
[1720712316493,45.0,140.29,140.2,15.6224]
[1720712316690,45.0,140.29,140.2,22.7547]
[1720712316691,7.1296,140.26,140.2,22.7547]
[1720712316889,45.0,140.25,140.2,15.6224]
[1720712317088,45.0,140.25,140.2,22.755]
[1720712317689,45.0,140.26,140.2,22.755]
[1720712317999,45.0,140.26,140.21,7.1321]
[1720712318200,45.0,140.27,140.21,7.1321]
[1720712318406,45.0,140.27,140.22,7.1316]
[1720712319306,45.0,140.27,140.21,17.8301]
[1720712319307,45.0,140.27,140.21,24.962]
[1720712320016,45.0,140.27,140.22,7.1314]
[1720712320203,52.1286,140.28,140.22,7.1314]
[1720712320409,45.0,140.28,140.22,7.1314]
[1720712320614,52.19527728,140.32,140.25,7.13]
[1720712320615,31.90197728,140.32,140.25,7.13]
[1720712320920,7.1272,140.31,140.24,7.1303]
[1720712321092,7.1281,140.29,140.23,24.9577]
[1720712322104,42.59197728,140.32,140.22,7.1314]
[1720712322324,7.1282,140.29,140.23,1.42368324]
[1720712322506,45.0,140.28,140.23,1.42368324]
[1720712323327,45.0,140.28,140.23,8.55468324]
[1720712323918,7.1275,140.31,140.24,7.1302]
[1720712324114,24.77527728,140.32,140.22,21.4882]
[1720712324115,2.87717728,140.32,140.22,21.4882]
[1720712324305,15.03655781,140.35,140.27,7.1288]
[1720712324306,7.126,140.34,140.27,7.1288]
[1720712324703,9.66046102,140.35,140.26,24.9526]
[1720712324898,7.1266,140.32,140.26,17.8231]
[1720712325098,7.1266,140.32,140.25,7.1299]
[1720712325099,7.1271,140.31,140.25,7.1299]
[1720712325499,7.1267,140.32,140.25,24.955]
[1720712326124,7.1267,140.32,140.26,7.1294]
[1720712326420,12.59314765,140.35,140.27,7.1286]
[1720712326798,7.1259,140.34,140.27,7.1286]
[1720712327911,45.0,140.33,140.27,7.1286]
[1720712328423,52.1261,140.33,140.27,7.1286]
[1720712328802,45.0,140.33,140.27,7.1286]
[1720712330126,52.1261,140.33,140.27,7.1286]
[1720712332015,52.1261,140.33,140.26,7.1294]
[1720712332719,65.8161,140.33,140.28,13.69]
[1720712334032,65.8161,140.33,140.29,1.12252446]
[1720712334233,65.8161,140.33,140.28,13.69]
[1720712335415,2.56,140.35,140.3,13.69]
[1720712335622,16.25,140.35,140.3,13.69]
[1720712335919,16.25,140.35,140.27,39.3093]
[1720712335920,9.6851,140.35,140.31,13.69]
[1720712336118,23.3751,140.35,140.3,13.69]
[1720712336319,7.1257,140.34,140.3,13.69]
[1720712336517,58.69,140.33,140.27,39.3093]
[1720712336727,13.69,140.34,140.29,13.69]
[1720712340237,2.56,140.35,140.27,39.3093]
[1720712340407,13.69,140.32,140.27,60.1282]
[1720712340609,13.69,140.31,140.27,15.433]
[1720712340806,66.9129,140.34,140.23,16.5479]
[1720712341149,20.8192,140.27,140.23,16.5479]
[1720712341451,66.9129,140.34,140.21,21.14203354]
[1720712341452,20.8196,140.26,140.21,21.14203354]
[1720712341611,13.69,140.25,140.21,7.45203354]
[1720712342333,13.69,140.23,140.21,7.45203354]
[1720712342528,7.1306,140.24,140.18,17.8334]
[1720712342709,45.0,140.23,140.18,17.3334]
[1720712342905,45.0,140.23,140.18,24.467]
[1720712343145,52.1306,140.24,140.18,24.467]
[1720712343610,45.0,140.24,140.18,24.467]
[1720712343925,45.0,140.24,140.19,7.133]
[1720712344124,52.1303,140.25,140.18,24.467]
[1720712345644,45.0,140.25,140.2,17.8312]
[1720712345816,21.9768,140.28,140.2,17.8312]
[1720712346147,7.1294,140.27,140.2,24.9637]
[1720712346332,7.1294,140.27,140.21,7.1321]
[1720712346518,7.1294,140.27,140.2,17.8312]
[1720712346841,7.1294,140.27,140.2,24.9637]
[1720712347020,45.0,140.26,140.2,24.9637]
[1720712347228,45.0,140.26,140.22,7.1311]
[1720712347616,2.86999779,140.28,140.24,7.1305]
[1720712347914,7.1277,140.3,140.24,7.1305]
[1720712348137,7.1281,140.29,140.23,7.131]
[1720712348433,7.1289,140.28,140.21,22.8397]
[1720712348937,59.3872759,140.31,140.21,22.8397]
[1720712349244,7.1298,140.26,140.21,15.7081]
[1720712349450,52.1301,140.25,140.18,7.1335]
[1720712349741,52.1301,140.25,140.19,7.1331]
[1720712349904,52.1301,140.25,140.18,17.834]
[1720712349905,45.0,140.25,140.2,7.1323]
[1720712350104,7.1296,140.26,140.2,7.1323]
[1720712350337,45.0,140.25,140.2,7.1323]
[1720712350836,45.0,140.26,140.2,7.1323]
[1720712351026,7.1302,140.25,140.18,17.834]
[1720712351228,45.0,140.24,140.18,17.834]
[1720712351757,45.0,140.25,140.19,7.1328]
[1720712352063,45.0,140.25,140.15,7.1348]
[1720712352064,7.1317,140.22,140.15,7.1348]
[1720712352349,52.1322,140.21,140.14,40.4543]
[1720712352652,45.0,140.2,140.14,40.4543]
[1720712352949,45.0,140.2,140.15,7.1351]
[1720712353128,45.0,140.2,140.16,7.1342]
[1720712353328,7.1307,140.24,140.17,7.1339]
[1720712353539,45.0,140.23,140.18,7.1335]
[1720712353858,7.1291,140.27,140.2,7.1326]
[1720712354021,45.0,140.26,140.2,7.1326]
[1720712354423,25.57704115,140.28,140.2,17.8309]
[1720712354648,29.8597,140.28,140.21,7.64438282]
[1720712354950,7.17606578,140.29,140.22,17.8285]
[1720712355322,6.4584,140.32,140.22,17.8285]
[1720712355543,7.1271,140.31,140.24,7.1305]
[1720712356252,16.49542508,140.32,140.21,100.0]
[1720712356253,23.62212508,140.32,140.21,100.0]
[1720712356469,29.97,140.35,140.21,100.0]
[1720712356470,2.56,140.35,140.24,22.3028]
[1720712356750,2.56,140.35,140.28,17.8206]
[1720712357056,2.56,140.35,140.3,7.1271]
[1720712357261,2.56,140.35,140.29,7.1279]
[1720712358022,2.56,140.35,140.3,1.14236774]
[1720712358352,2.56,140.35,140.28,17.8206]
[1720712358534,2.56,140.35,140.28,24.9487]
[1720712358859,2.56,140.35,140.29,0.46732005]
[1720712359060,9.6852,140.35,140.28,17.8206]
[1720712359247,9.6851,140.35,140.28,17.8206]
[1720712359553,7.1255,140.34,140.26,421.8395]
[1720712360071,9.6851,140.35,140.27,7.129]
[1720712360262,45.0,140.34,140.26,394.4296]
[1720712360430,51.0083,140.34,140.26,387.3]
[1720712361234,66.5879,140.34,140.26,387.3]
[1720712361438,7.1261,140.33,140.26,387.3]
[1720712361669,45.0,140.32,140.26,387.3]
[1720712362067,45.0,140.32,140.26,394.4295]
[1720712362578,52.1265,140.32,140.26,387.3]
[1720712362769,7.1274,140.31,140.26,387.3]
[1720712362980,45.0,140.32,140.24,16.1954]
[1720712363147,7.1271,140.31,140.24,23.3255]
[1720712363459,45.0,140.3,140.24,23.326]
[1720712364258,2.56,140.35,140.24,16.1954]
[1720712364458,9.685,140.35,140.28,7.1281]
[1720712364641,7.1255,140.34,140.27,7.1289]
[1720712365250,7.1255,140.34,140.28,7.1285]
[1720712365447,7.1255,140.34,140.27,7.129]
[1720712365647,12.63930395,140.35,140.28,7.1284]
[1720712365862,2.56,140.35,140.29,7.128]
[1720712366047,2.56,140.35,140.29,7.1279]
[1720712366774,9.685,140.35,140.28,24.9492]
[1720712366964,7.1259,140.34,140.27,7.129]
[1720712367272,2.56,140.35,140.24,16.1954]
[1720712367453,7.1274,140.31,140.24,23.3255]
[1720712367767,9.73606578,140.35,140.23,7.1309]
[1720712367768,7.1281,140.29,140.23,7.1309]
[1720712367964,7.1286,140.28,140.22,24.96]
[1720712368174,52.1286,140.28,140.21,29.1883]
[1720712368541,52.1286,140.28,140.22,7.1316]
[1720712368743,45.0,140.28,140.22,7.1316]
[1720712369143,7.1292,140.27,140.19,387.3]
[1720712369368,7.1301,140.25,140.19,394.433]
[1720712369547,45.0,140.28,140.19,7.133]
[1720712369548,45.0,140.24,140.19,7.133]
[1720712369738,7.1297,140.26,140.19,7.133]
[1720712369938,45.0,140.25,140.19,7.133]
[1720712370164,45.0,140.25,140.2,7.1325]
[1720712370551,45.0,140.25,140.19,7.1329]
[1720712370774,45.0,140.25,140.2,7.1326]
[1720712371269,45.0,140.25,140.2,7.1325]
[1720712371475,45.0,140.25,140.19,7.1329]
[1720712372282,52.1302,140.25,140.18,32.41591258]
[1720712372486,45.0,140.25,140.18,25.28231258]
[1720712372776,45.0,140.25,140.19,7.133]
[1720712372980,45.0,140.25,140.21,7.1321]
[1720712373284,45.0,140.26,140.21,7.1321]
[1720712373577,52.1296,140.26,140.19,7.133]
[1720712373877,45.0,140.26,140.2,7.1326]
[1720712374349,45.0,140.26,140.18,32.41551258]
[1720712374350,52.1296,140.26,140.18,32.41551258]
[1720712374550,7.1302,140.25,140.19,7.133]
[1720712374782,45.0,140.24,140.2,7.1326]
[1720712374958,52.1297,140.26,140.2,7.1326]
[1720712375160,45.0,140.26,140.2,7.1326]
[1720712375560,52.1297,140.26,140.2,7.1326]
[1720712375773,52.1297,140.26,140.19,7.133]
[1720712375959,45.0,140.26,140.2,7.1325]
[1720712377486,45.0,140.26,140.21,7.1319]
[1720712377657,45.0,140.27,140.22,7.1313]
[1720712377860,29.0743,140.29,140.22,24.9603]
[1720712378386,10.03889304,140.3,140.24,7.1305]
[1720712378564,7.1276,140.3,140.25,1.42577025]
[1720712378753,7.1276,140.3,140.23,7.1309]
[1720712378951,39.2418,140.33,140.22,24.9604]
[1720712379156,7.1286,140.28,140.22,17.8289]
[1720712379757,7.1282,140.29,140.22,17.8289]
[1720712379957,45.0,140.28,140.22,17.8289]
[1720712380190,49.28098085,140.33,140.22,17.8289]
[1720712380559,17.8186,140.31,140.19,17.8326]
[1720712380757,17.8186,140.31,140.18,143.11531258]
[1720712380982,7.1284,140.29,140.21,17.8298]
[1720712381564,45.0,140.28,140.22,7.1315]
[1720712381768,7.1296,140.26,140.2,7.1325]
[1720712381985,45.0,140.28,140.2,7.1325]
[1720712382173,7.1289,140.28,140.21,7.1318]
[1720712382356,45.0,140.27,140.21,7.1318]
[1720712382560,52.1291,140.27,140.2,24.9636]
[1720712382759,49.6291,140.27,140.2,24.9636]
[1720712382982,7.1297,140.26,140.2,24.9636]
[1720712383371,7.1301,140.25,140.19,7.133]
[1720712383592,7.1301,140.25,140.18,14.58261258]
[1720712384090,7.1306,140.24,140.18,14.58261258]
[1720712384463,40.3383,140.26,140.18,7.44901258]
[1720712384668,40.3383,140.26,140.14,39.4482]
[1720712384870,7.1318,140.22,140.15,7.1351]
[1720712385198,45.0,140.21,140.15,7.1351]
[1720712386489,45.0,140.21,140.14,17.839]
[1720712386990,7.1326,140.2,140.14,24.9745]
[1720712387183,45.0,140.19,140.14,24.9745]
[1720712387571,45.0,140.19,140.13,7.136]
[1720712387770,52.1332,140.19,140.13,24.9763]
[1720712387984,45.0,140.19,140.13,24.9763]
[1720712388390,45.0,140.19,140.13,17.8403]
[1720712388580,45.0,140.19,140.13,24.9764]
[1720712389893,45.0,140.19,140.14,7.1356]
[1720712390299,52.1331,140.19,140.13,24.9763]
[1720712391096,52.1331,140.19,140.13,17.8403]
[1720712391397,45.0,140.19,140.13,17.8403]
[1720712391573,45.0,140.19,140.13,24.9762]
[1720712392171,45.0,140.19,140.14,7.1356]
[1720712392573,52.1334,140.19,140.13,17.8403]
[1720712392777,45.0,140.19,140.13,17.8403]
[1720712393200,45.0,140.19,140.1,24.9812]
[1720712393692,7.1341,140.18,140.11,7.137]
[1720712394023,45.0,140.17,140.12,7.1364]
[1720712394171,45.0,140.18,140.12,7.1364]
[1720712394368,45.0,140.19,140.12,7.1364]
[1720712394789,52.1333,140.19,140.12,7.1364]
[1720712397293,52.1333,140.19,140.12,24.9782]
[1720712398298,27.43,140.24,140.16,7.1342]
[1720712398299,7.1315,140.23,140.16,7.1342]
[1720712398503,7.1311,140.23,140.16,24.9707]
[1720712398712,29.2742,140.24,140.17,7.1341]
[1720712398906,29.2742,140.24,140.16,24.971]
[1720712398907,7.1312,140.23,140.16,24.971]
[1720712399095,22.1434,140.24,140.16,17.8365]
[1720712399283,7.1317,140.22,140.16,24.9709]
[1720712399482,7.1313,140.23,140.16,24.9709]
[1720712399698,25.08787954,140.24,140.16,24.9711]
[1720712399901,7.1314,140.23,140.16,24.9711]
[1720712400089,25.08787954,140.24,140.16,24.9711]
[1720712400090,52.1319,140.22,140.16,17.8365]
[1720712400606,7.1337,140.18,140.11,400.8028]
[1720712401091,45.0,140.17,140.11,387.3]
[1720712401296,7.1353,140.15,140.11,387.3]
[1720712402015,45.0,140.17,140.11,387.3]
[1720712402307,22.5945,140.22,140.14,7.1356]
[1720712402613,7.1323,140.21,140.14,7.1356]
[1720712402806,7.1323,140.21,140.15,1.42272486]
[1720712403002,7.1328,140.2,140.15,1.42272486]
[1720712403309,40.424,140.22,140.13,15.0823]
[1720712403485,7.1333,140.19,140.13,22.2183]
[1720712403692,7.133,140.2,140.13,22.2183]
[1720712403903,45.0,140.19,140.13,22.2183]
[1720712404102,45.0,140.19,140.13,15.0823]
[1720712404316,7.1343,140.17,140.11,387.3]
[1720712404605,7.1343,140.17,140.11,7.1372]
[1720712405004,7.1338,140.18,140.12,7.1367]
[1720712405214,45.0,140.17,140.12,7.1367]
[1720712405381,45.0,140.19,140.11,24.9799]
[1720712405587,7.1343,140.17,140.11,17.8429]
[1720712405781,7.1347,140.16,140.1,7.1375]
[1720712405988,7.1342,140.17,140.1,7.1375]
[1720712406415,7.1342,140.17,140.11,7.1371]
[1720712406710,7.1337,140.18,140.12,7.1366]
[1720712406914,45.0,140.17,140.12,7.1366]
[1720712407295,7.1322,140.21,140.14,7.1356]
[1720712407493,22.5945,140.22,140.12,17.8415]
[1720712407690,7.1336,140.19,140.12,24.9781]
[1720712408007,7.134,140.18,140.12,17.8415]
[1720712408702,45.0,140.17,140.12,24.9781]
[1720712408900,45.0,140.17,140.13,7.1361]
[1720712409099,22.5945,140.22,140.12,17.8415]
[1720712409411,7.1335,140.19,140.12,24.9777]
[1720712409613,45.0,140.18,140.12,24.9777]
[1720712409800,7.1326,140.21,140.14,17.8391]
[1720712410126,7.1317,140.22,140.14,17.8391]
[1720712410298,7.1317,140.22,140.15,7.135]
[1720712410495,2.94447954,140.24,140.15,7.135]
[1720712410690,7.1321,140.21,140.14,24.9746]
[1720712411196,7.1321,140.21,140.15,7.135]
[1720712411399,7.1312,140.23,140.16,18.24302275]
[1720712411598,7.1312,140.23,140.16,25.37752275]
[1720712411798,7.1317,140.22,140.17,0.77960493]
[1720712412209,32.48842786,140.25,140.17,7.1341]
[1720712412397,22.154,140.28,140.18,7.1336]
[1720712412603,7.1304,140.25,140.19,7.1331]
[1720712413004,7.1297,140.26,140.18,17.8339]
[1720712413194,7.1291,140.27,140.21,7.1317]
[1720712413506,6.1138,140.31,140.2,40.8098]
[1720712413507,7.1296,140.26,140.2,40.8098]
[1720712413689,7.1296,140.26,140.2,15.8468]
[1720712414613,17.8223,140.28,140.17,40.8149]
[1720712414998,7.1312,140.23,140.17,33.6812]
[1720712415404,7.1312,140.23,140.17,40.8152]
[1720712415797,7.1306,140.25,140.18,7.1334]
[1720712416096,45.0,140.24,140.17,33.6812]
[1720712416715,7.1299,140.26,140.19,7.1331]
[1720712417927,17.8223,140.28,140.19,7.1331]
[1720712417928,7.1302,140.25,140.19,7.1331]
[1720712418219,7.1306,140.24,140.17,33.6812]
[1720712418414,7.1302,140.25,140.19,7.1331]
[1720712418617,45.0,140.24,140.19,7.1331]
[1720712418799,45.0,140.24,140.18,7.1334]
[1720712419120,7.1296,140.26,140.19,7.1331]
[1720712419287,17.8223,140.28,140.18,100.0]
[1720712419288,7.129,140.28,140.18,100.0]
[1720712419495,26.85356301,140.31,140.22,7.1313]
[1720712419706,7.1282,140.29,140.22,7.1313]
[1720712420322,7.1277,140.3,140.23,24.9585]
[1720712420500,7.1277,140.3,140.23,17.8277]
[1720712420699,6.1999,140.3,140.17,15.8468]
[1720712420898,7.1333,140.19,140.14,393.7741]
[1720712421213,7.1333,140.19,140.14,6.4741]
[1720712421413,7.1328,140.2,140.14,6.4741]
[1720712421617,7.1337,140.18,140.14,6.4741]
[1720712421802,7.1333,140.19,140.14,6.4741]
[1720712422128,35.6494,140.26,140.13,15.1831]